bitfinex-derivatives/quotes_SOLF0:USTF0_20240908
["timestamp","ask_amount","ask_price","bid_price","bid_amount"]
[1725777873186,2.7264,128.38,128.35,8.4]
[1725777885300,2.7264,128.38,128.34,2.7272]
[1725777885500,2.7264,128.38,128.34,11.1272]
[1725777887795,156.72966652,128.39,128.37,8.4]
[1725777888196,2.726,128.4,128.38,12.24888161]
[1725777888502,1.3386,128.48,128.33,1.3378]
[1725777888503,1.3386,128.48,128.39,8.4]
[1725777888703,8.4,128.46,128.41,8.4]
[1725777889495,8.4,128.46,128.41,12.2711412]
[1725777889896,2.7253,128.43,128.41,12.2711412]
[1725777894102,2.7253,128.43,128.41,3.8711412]
[1725777894502,2.7253,128.43,128.4,9.7539]
[1725777895211,2.7253,128.43,128.41,3.95840452]
[1725777901009,151.0421536,128.47,128.42,8.4]
[1725777901311,154.85798407,128.47,128.42,12.24543471]
[1725777902010,8.4,128.44,128.4,1.3539]
[1725777902307,8.4,128.43,128.37,2.6478]
[1725777902516,8.4,128.41,128.37,5.21779418]
[1725777902704,8.4,128.41,128.35,11.1269]
[1725777903812,2.7261,128.4,128.36,5.17747615]
[1725777905406,2.7262,128.39,128.36,5.17747615]
[1725777910100,2.7257,128.42,128.38,11.1264]
[1725777911509,8.4,128.45,128.38,8.4]
[1725777911709,8.4,128.45,128.39,8.4]
[1725777912211,2.7255,128.43,128.39,8.4]
[1725777913210,2.7255,128.43,128.39,11.1262]
[1725777926118,2.7255,128.43,128.4,2.7259]
[1725777928721,2.7255,128.43,128.39,11.1261]
[1725777928917,8.4,128.43,128.38,8.4]
[1725777929624,2.7257,128.42,128.38,11.1262]
[1725777930929,2.7258,128.41,128.37,13.7284]
[1725777933215,2.726,128.4,128.37,5.3284]
[1725777933416,2.726,128.4,128.37,13.7284]
[1725777934222,2.7262,128.39,128.37,11.0019]
[1725777934429,2.7262,128.39,128.37,1.3219]
[1725777935125,2.7264,128.38,128.36,1.3676]
[1725777951954,2.7264,128.38,128.35,8.4]
[1725777959956,2.7264,128.38,128.34,2.7271]
[1725777960249,2.7264,128.38,128.34,11.1271]
[1725777970662,1.3169,128.44,128.34,8.4]
[1725777970965,8.4,128.41,128.36,8.4]
[1725777971172,2.726,128.4,128.37,3.80581313]
[1725777975169,2.7258,128.41,128.37,2.7265]
[1725777975372,2.7258,128.41,128.38,3.86940938]
[1725777976277,2.7258,128.41,128.37,2.7265]
[1725777976471,11.1258,128.41,128.37,2.7265]
[1725777976877,11.1258,128.41,128.37,6.69767257]
[1725777977777,2.726,128.4,128.37,6.69767257]
[1725777983675,11.1258,128.41,128.38,2.7263]
[1725777986087,11.126,128.4,128.37,1.3271]
[1725777986288,8.4,128.39,128.33,2.7141]
[1725777986477,11.1265,128.38,128.33,6.7904]
[1725777986787,11.1265,128.38,128.33,4.0632]
[1725777988287,11.1265,128.38,128.34,2.7272]
[1725777989286,1.3169,128.44,128.35,2.727]
[1725777989287,24.7369,128.44,128.35,2.727]
[1725777989488,8.4,128.39,128.36,3.95582295]
[1725777993091,11.1262,128.39,128.36,3.95582295]
[1725778001000,2.7264,128.38,128.34,11.1271]
[1725778001207,8.4,128.37,128.33,1.3491]
[1725778001412,8.4,128.36,128.33,1.3491]
[1725778002110,11.1269,128.36,128.33,1.3491]
[1725778002616,2.7269,128.36,128.33,1.3491]
[1725778014717,2.727,128.35,128.32,2.7276]
[1725778016817,2.7269,128.36,128.32,2.7276]
[1725778021118,139.06444853,128.39,128.34,8.4]
[1725778021320,139.06444853,128.39,128.35,8.4]
[1725778021523,147.46444853,128.39,128.34,8.4]
[1725778022317,2.7264,128.38,128.34,11.1272]
[1725778024322,139.06444853,128.39,128.35,8.4]
[1725778024518,1.2843,128.45,128.36,8.4]
[1725778024822,8.4,128.42,128.36,9.6761]
[1725778025017,8.4,128.42,128.36,13.56702275]
[1725778025515,2.7259,128.41,128.36,16.29372275]
[1725778026124,2.726,128.4,128.36,16.29372275]
[1725778027622,2.726,128.4,128.36,7.89372275]
[1725778034926,2.7258,128.41,128.37,2.7264]
[1725778036123,2.7259,128.4,128.37,2.7264]
[1725778036337,2.7259,128.4,128.36,7.89372275]
[1725778036521,2.7264,128.38,128.36,1.2761]
[1725778036721,2.7264,128.38,128.35,2.727]
[1725778036932,2.7264,128.38,128.35,6.70588421]
[1725778037123,2.7264,128.38,128.35,2.727]
[1725778037631,11.1262,128.39,128.35,6.5835529]
[1725778041221,2.7262,128.39,128.35,14.9835529]
[1725778041635,2.7262,128.39,128.36,8.4]
[1725778042230,2.7262,128.39,128.36,11.1268]
[1725778049832,1.2843,128.45,128.36,11.1268]
[1725778050032,8.4,128.42,128.36,12.458]
[1725778051437,2.726,128.4,128.36,12.458]
[1725778053030,10.51972464,128.46,128.39,8.4]
[1725778053233,2.7104,128.51,128.43,8.4]
[1725778053440,8.4,128.5,128.43,8.4]
[1725778054232,2.7242,128.49,128.44,2.7249]
[1725778058239,2.7242,128.49,128.44,11.1249]
[1725778058437,11.1239,128.5,128.45,2.7248]
[1725778058745,8.4,128.5,128.45,2.7248]
[1725778060446,2.7241,128.49,128.45,2.7248]
[1725778064838,2.7241,128.49,128.45,11.1248]
[1725778068951,2.7241,128.49,128.46,3.89191695]
[1725778069144,2.7241,128.49,128.47,8.4]
[1725778070350,2.7237,128.51,128.47,11.1244]
[1725778071552,2.7238,128.5,128.47,11.1244]
[1725778071752,2.7238,128.5,128.46,2.7246]
[1725778072453,2.7238,128.5,128.46,6.5775824]
[1725778074644,3.97017598,128.51,128.46,2.7246]
[1725778074645,2.7241,128.49,128.46,2.7246]
[1725778078251,2.7241,128.49,128.46,6.55858921]
[1725778078557,2.7239,128.5,128.46,14.95858921]
[1725778082253,2.7239,128.5,128.46,11.1246]
[1725778083560,2.7241,128.49,128.46,11.1246]
[1725778084060,2.7241,128.49,128.46,8.4]
[1725778086764,2.7241,128.49,128.45,11.1248]
[1725778094572,2.7243,128.48,128.45,2.7248]
[1725778094864,2.7243,128.48,128.45,11.1248]
[1725778097166,27.36017598,128.51,128.41,1.4043]
[1725778097460,8.4,128.47,128.41,9.8043]
[1725778098566,2.7249,128.45,128.41,12.5299]
[1725778099466,2.7248,128.46,128.42,2.7255]
[1725778099966,2.7248,128.46,128.42,11.1255]
[1725778123897,2.7248,128.46,128.42,2.7255]
[1725778124398,2.7248,128.46,128.42,11.1255]
[1725778126194,2.7248,128.46,128.43,8.4]
[1725778127400,8.4,128.49,128.43,8.4]
[1725778127401,2.7245,128.47,128.43,8.4]
[1725778130898,2.7245,128.47,128.43,11.1253]
[1725778133197,2.7247,128.46,128.43,11.1253]
[1725778136896,2.7247,128.46,128.42,2.7254]
[1725778137097,2.7247,128.46,128.42,11.1254]
[1725778145211,2.7245,128.47,128.43,2.7253]
[1725778148510,2.7247,128.46,128.43,2.7253]
[1725778150008,2.7247,128.46,128.42,11.1255]
[1725778167121,10.51442358,128.5,128.43,8.4]
[1725778167331,13.07307715,128.5,128.43,8.4]
[1725778167725,8.4,128.5,128.43,8.4]
[1725778167925,8.4,128.5,128.44,8.4]
[1725778168429,2.7244,128.48,128.44,11.1251]
[1725778174835,2.7244,128.48,128.45,1.3035]
[1725778186534,2.7239,128.5,128.46,2.7247]
[1725778186729,2.7239,128.5,128.46,11.1247]
[1725778192056,11.1239,128.5,128.46,2.7247]
[1725778192748,2.724,128.49,128.46,2.7247]
[1725778193050,2.724,128.49,128.45,4.0284]
[1725778193248,11.124,128.49,128.45,4.0284]
[1725778194954,2.7242,128.48,128.45,4.0284]
[1725778196758,2.7242,128.48,128.45,1.3035]
[1725778202953,8.4,128.48,128.4,10.5386]
[1725778203151,8.4,128.48,128.41,9.7547]
[1725778204060,2.7247,128.46,128.42,2.7254]
[1725778206867,2.7247,128.46,128.41,4.0804]
[1725778207164,2.7247,128.46,128.42,8.4]
[1725778220270,2.7247,128.46,128.42,11.1254]
[1725778220574,2.7245,128.47,128.42,8.4]
[1725778220971,8.4,128.5,128.44,8.4]
[1725778221165,166.85513136,128.51,128.44,8.4]
[1725778221367,166.85513136,128.51,128.41,1.3547]
[1725778221368,175.25513136,128.51,128.45,8.4]
[1725778222270,2.7241,128.49,128.45,11.1248]
[1725778222470,166.85513136,128.51,128.45,8.4]
[1725778223681,2.724,128.5,128.46,2.7246]
[1725778224179,11.124,128.5,128.46,2.7246]
[1725778224586,11.124,128.5,128.46,6.56287766]
[1725778227292,2.724,128.5,128.46,6.56287766]
[1725778230685,2.724,128.5,128.46,7.93857766]
[1725778239387,11.124,128.5,128.46,7.93857766]
[1725778240983,166.85513136,128.51,128.46,5.21397766]
[1725778241185,166.85513136,128.51,128.47,8.4]
[1725778241697,2.6511,128.57,128.48,2.7241]
[1725778241894,8.4,128.53,128.48,2.7241]
[1725778242300,11.1232,128.53,128.48,2.7241]
[1725778242797,11.1232,128.53,128.49,2.724]
[1725778245188,2.7232,128.53,128.49,2.724]
[1725778245394,8.4,128.52,128.49,2.724]
[1725778247103,3.8886722,128.55,128.48,100.0]
[1725778247298,8.4,128.53,128.48,108.4]
[1725778247697,2.7234,128.52,128.48,100.0]
[1725778247903,8.4,128.53,128.48,100.0]
[1725778249403,11.1233,128.53,128.49,2.724]
[1725778252496,2.7235,128.52,128.48,100.0]
[1725778252701,8.4,128.51,128.48,100.0]
[1725778253204,11.1238,128.51,128.48,100.0]
[1725778257904,11.1238,128.51,128.49,100.0]
[1725778266310,11.1238,128.5,128.49,20.89]
[1725778268513,14.98076122,128.5,128.49,20.89]
[1725778269911,11.1245,128.47,128.46,1.3757]
[1725778271510,2.7245,128.47,128.46,1.3757]
[1725778282822,11.1244,128.48,128.46,1.3757]
[1725778287420,1.3173,128.52,128.46,1.3757]
[1725778287720,23.36,128.58,128.46,1.3757]
[1725778287721,8.4,128.51,128.46,1.3757]
[1725778288314,2.724,128.5,128.46,4.1004]
[1725778303335,8.4,128.51,128.46,4.1004]
[1725778303336,2.7236,128.51,128.47,8.4]
[1725778303535,2.7236,128.51,128.48,8.4]
[1725778303736,8.4,128.53,128.48,8.4]
[1725778303931,2.7236,128.52,128.48,11.1242]
[1725778307338,2.7236,128.51,128.47,2.7244]
[1725778310540,11.1234,128.52,128.48,2.7242]
[1725778311537,2.7237,128.51,128.47,2.7243]
[1725778313738,2.7237,128.51,128.47,11.1243]
[1725778316545,467.77996964,128.6,128.5,8.4]
[1725778316740,8.4,128.57,128.51,9.6995]
[1725778316940,8.4,128.57,128.51,13.55322489]
[1725778317545,11.1224,128.57,128.53,2.7232]
[1725778317742,8.4,128.56,128.51,13.55322489]
[1725778319343,11.1226,128.56,128.52,2.7233]
[1725778321046,2.7226,128.56,128.52,2.7233]
[1725778322456,2.7228,128.55,128.51,4.0231]
[1725778323142,2.7228,128.55,128.51,2.7236]
[1725778324851,8.4,128.52,128.46,1.3406]
[1725778325249,8.4,128.52,128.46,9.7406]
[1725778325455,2.7237,128.51,128.47,3.88015451]
[1725778325955,2.7237,128.51,128.46,12.4651]
[1725778326255,2.7237,128.51,128.46,16.39428665]
[1725778327555,8.4,128.52,128.46,16.39428665]
[1725778327556,2.7238,128.5,128.46,16.39428665]
[1725778328145,2.7237,128.51,128.48,8.4]
[1725778329651,2.7237,128.51,128.49,8.4]
[1725778329861,2.723,128.54,128.5,8.4]
[1725778331563,1.3834,128.57,128.51,8.4]
[1725778331748,9.7834,128.57,128.51,8.4]
[1725778332451,9.7834,128.57,128.46,5.26978665]
[1725778332452,8.4,128.56,128.46,5.26978665]
[1725778332653,8.4,128.56,128.5,8.4]
[1725778332856,8.4,128.56,128.46,5.26978665]
[1725778333056,8.4,128.54,128.48,8.4]
[1725778333361,2.7234,128.52,128.48,11.1241]
[1725778333557,8.4,128.54,128.48,8.4]
[1725778334459,2.7232,128.53,128.49,2.724]
[1725778336462,2.723,128.54,128.5,2.7238]
[1725778336664,8.4,128.54,128.46,5.26978665]
[1725778336859,8.4,128.54,128.48,8.4]
[1725778337264,2.7236,128.52,128.48,11.1242]
[1725778338658,2.7232,128.53,128.49,2.724]
[1725778340762,2.7234,128.52,128.48,11.1242]
[1725778341561,2.7234,128.52,128.48,2.7242]
[1725778341760,2.7234,128.52,128.46,5.26978665]
[1725778341761,2.7237,128.51,128.47,11.1244]
[1725778343668,2.7237,128.51,128.48,2.7242]
[1725778344269,2.7235,128.52,128.48,11.1242]
[1725778349781,2.7232,128.53,128.49,2.724]
[1725778365683,11.123,128.54,128.5,2.7238]
[1725778381994,2.7232,128.53,128.49,2.724]
[1725778387501,8.4,128.51,128.46,5.26978665]
[1725778387806,8.4,128.51,128.46,1.3406]
[1725778387807,8.4,128.5,128.46,1.3406]
[1725778388297,11.124,128.5,128.46,1.3406]
[1725778389292,2.724,128.5,128.46,4.0652]
[1725778389493,2.724,128.5,128.46,12.4652]
[1725778390897,2.7237,128.51,128.46,12.4652]
[1725778392698,2.7237,128.51,128.47,2.7244]
[1725778394003,12.4246,128.52,128.47,2.7244]
[1725778396399,2.7235,128.52,128.48,2.7242]
[1725778399302,11.1232,128.53,128.49,2.724]
[1725778400708,11.1231,128.54,128.5,2.7238]
[1725778403610,11.1231,128.54,128.49,2.7239]
[1725778404318,2.7232,128.53,128.49,2.7239]
[1725778404817,11.1232,128.53,128.49,2.7239]
[1725778411519,2.7232,128.53,128.5,2.7238]
[1725778413122,2.7232,128.53,128.49,2.724]
[1725778415222,2.7229,128.55,128.51,2.7236]
[1725778417022,2.7229,128.55,128.52,3.803104]
[1725778417226,11.1226,128.56,128.52,2.7233]
[1725778417428,11.1226,128.56,128.53,3.82178291]
[1725778418128,2.7226,128.56,128.53,3.82178291]
[1725778422337,2.7226,128.56,128.52,2.7233]
[1725778422719,2.7226,128.56,128.52,6.68703978]
[1725778423128,2.7228,128.55,128.52,6.68703978]
[1725778424624,11.1228,128.55,128.51,11.1235]
[1725778424825,11.1228,128.55,128.51,2.7235]
[1725778427540,11.1228,128.55,128.52,3.9774405]
[1725778430241,5.13460572,128.58,128.52,2.7233]
[1725778430242,11.1226,128.56,128.52,2.7233]
[1725778430437,11.1226,128.56,128.53,3.9614856]
[1725778432841,11.1226,128.56,128.52,2.7233]
[1725778433239,8.4,128.55,128.46,2.7404]
[1725778433544,8.4,128.54,128.49,8.4]
[1725778434542,11.123,128.54,128.51,2.7236]
[1725778439951,11.123,128.54,128.5,2.7237]
[1725778440950,2.7232,128.53,128.49,2.724]
[1725778441349,8.4,128.54,128.46,2.7404]
[1725778441548,8.4,128.54,128.48,8.4]
[1725778442250,11.1231,128.54,128.5,2.7238]
[1725778443054,11.1231,128.54,128.49,2.724]
[1725778444360,2.7232,128.53,128.49,2.724]
[1725778444561,2.7232,128.53,128.48,11.1242]
[1725778445157,2.7232,128.53,128.49,2.724]
[1725778446564,2.7232,128.53,128.48,11.1242]
[1725778448062,2.7235,128.52,128.48,11.1242]
[1725778453463,2.7235,128.52,128.48,2.7242]
[1725778456361,2.7235,128.52,128.47,11.1244]
[1725778459867,2.7235,128.52,128.48,2.7242]
[1725778477082,8.4,128.51,128.48,2.7242]
[1725778485689,8.4,128.51,128.47,11.1244]
[1725778493290,11.1236,128.51,128.47,11.1244]
[1725778493697,11.1236,128.51,128.47,2.7244]
[1725778503810,1.2759,128.54,128.48,8.4]
[1725778504019,9.6759,128.54,128.48,8.4]
[1725778504522,8.4,128.52,128.47,8.4]
[1725778506418,11.1234,128.52,128.48,2.7241]
[1725778517226,2.7234,128.52,128.48,2.7241]
[1725778520333,1.2759,128.54,128.49,2.7239]
[1725778520634,9.6759,128.54,128.49,2.7239]
[1725778521326,2.7233,128.53,128.49,2.7239]
[1725778522336,11.1233,128.53,128.49,2.7239]
[1725778528129,11.1233,128.53,128.48,11.1242]
[1725778528439,11.1233,128.53,128.48,2.7242]
[1725778529530,2.7234,128.52,128.48,2.7242]
[1725778536035,5.83927027,128.56,128.47,8.4]
[1725778536235,8.4,128.54,128.48,8.4]
[1725778536637,11.1231,128.54,128.49,2.724]
[1725778540945,2.7232,128.53,128.49,2.724]
[1725778542252,2.7232,128.53,128.48,11.1242]
[1725778544145,2.7234,128.52,128.48,11.1242]
[1725778545555,2.7236,128.51,128.47,2.7244]
[1725778545748,8.4,128.51,128.47,2.7244]
[1725778545954,8.4,128.52,128.47,11.1244]
[1725778546553,11.1235,128.52,128.47,11.1244]
[1725778555463,11.1235,128.52,128.48,2.7242]
[1725778561869,2.7236,128.51,128.47,11.1243]
[1725778562768,11.1236,128.51,128.46,12.4652]
[1725778563163,2.7238,128.5,128.46,4.0652]
[1725778563574,11.1238,128.5,128.46,4.0652]
[1725778565967,2.724,128.49,128.46,1.3406]
[1725778570708,8.4,128.49,128.41,1.375]
[1725778570868,8.4,128.49,128.43,8.4]
[1725778571270,2.7244,128.48,128.44,2.725]
[1725778571470,2.7244,128.48,128.45,3.80020869]
[1725778571881,11.1241,128.49,128.45,3.80020869]
[1725778578977,2.7241,128.49,128.45,3.80020869]
[1725778583888,2.7241,128.49,128.45,2.7247]
[1725778584097,2.7241,128.49,128.46,3.85851864]
[1725778594094,2.7242,128.48,128.46,3.85851864]
[1725778599198,2.7242,128.48,128.44,11.125]
[1725778603902,2.7241,128.49,128.44,11.125]
[1725778609303,2.7243,128.48,128.45,3.94113983]
[1725778609815,8.4,128.49,128.45,3.94113983]
[1725778610001,2.7244,128.48,128.43,2.7252]
[1725778612116,2.7244,128.48,128.43,6.66625738]
[1725778614612,3.95468348,128.5,128.43,3.94105738]
[1725778614613,8.4,128.46,128.43,3.94105738]
[1725778615015,2.725,128.45,128.42,1.3826]
[1725778615512,2.725,128.45,128.42,5.31251008]
[1725778616320,2.725,128.45,128.42,13.71251008]
[1725778616822,2.7247,128.46,128.42,13.71251008]
[1725778619018,2.7247,128.46,128.42,16.43801008]
[1725778621623,3.95468348,128.5,128.43,8.4]
[1725778621922,158.5852457,128.51,128.45,8.4]
[1725778623325,2.7241,128.49,128.45,11.1248]
[1725778645942,144.82553729,128.51,128.46,8.4]
[1725778646149,147.54913729,128.51,128.48,8.4]
[1725778647642,1.3921,128.57,128.49,3.93896932]
[1725778647643,2.7235,128.52,128.49,3.93896932]
[1725778647845,2.7235,128.52,128.49,8.4]
[1725778648042,2.7235,128.52,128.5,3.95609528]
[1725778656057,2.7235,128.52,128.49,8.4]
[1725778656353,2.7235,128.52,128.5,3.90744348]
[1725778660257,2.7235,128.52,128.48,2.7242]
[1725778660654,2.7235,128.52,128.49,3.82103378]
[1725778671975,2.7235,128.52,128.49,12.22103378]
[1725778674181,2.7235,128.52,128.49,3.82103378]
[1725778676770,2.7235,128.52,128.48,11.1242]
[1725778677173,2.7235,128.52,128.48,14.99544396]
[1725778680979,2.7235,128.52,128.48,6.59544396]
[1725778681180,2.7238,128.5,128.46,12.4896]
[1725778681372,2.7238,128.5,128.47,3.83504016]
[1725778682685,2.7241,128.49,128.46,1.3651]
[1725778683079,2.7241,128.49,128.46,5.26584036]
[1725778683274,2.7241,128.49,128.46,1.3651]
[1725778683483,2.7242,128.48,128.46,1.3651]
[1725778688587,2.7242,128.48,128.44,120.36301899]
[1725778689088,2.7242,128.48,128.44,124.22426636]
[1725778691185,2.7242,128.48,128.44,115.82426636]
[1725778691583,2.7245,128.47,128.44,113.09926636]
[1725778694883,8.4,128.48,128.44,109.23801899]
[1725778695394,8.4,128.48,128.44,113.1883439]
[1725778696394,2.7246,128.47,128.44,113.1883439]
[1725778700098,2.7246,128.47,128.44,121.5883439]
[1725778700307,2.7246,128.47,128.44,122.9485439]
[1725778701600,2.7246,128.47,128.44,125.6736439]
[1725778701989,2.7246,128.47,128.44,122.9485439]
[1725778708407,8.4,128.48,128.44,110.59821899]
[1725778708609,2.7247,128.46,128.44,110.59821899]
[1725778711915,2.7249,128.45,128.44,110.59821899]
[1725778712213,8.4,128.48,128.44,110.59821899]
[1725778712610,2.7245,128.47,128.44,110.59821899]
[1725778714620,2.7245,128.47,128.44,114.58701437]
[1725778718122,2.7242,128.49,128.44,114.58701437]
[1725778718312,11.1242,128.49,128.44,115.89351437]
[1725778718820,2.7243,128.48,128.44,115.89351437]
[1725778720320,2.7243,128.48,128.44,118.61851437]
[1725778722224,2.7241,128.49,128.45,2.7248]
[1725778729125,2.7239,128.5,128.46,2.7245]
[1725778729320,8.4,128.5,128.44,124.29351437]
[1725778730527,2.724,128.49,128.45,2.7248]
[1725778739836,2.7243,128.48,128.44,118.61851437]
[1725778740030,215.19550094,128.51,128.44,110.59821899]
[1725778740031,8.4,128.46,128.44,110.59821899]
[1725778740539,11.1247,128.46,128.44,110.59821899]
[1725778743734,11.1249,128.45,128.41,11.1257]
[1725778753247,2.7251,128.44,128.4,5.4018]
[1725778755348,8.4,128.44,128.4,1.2819]
[1725778755546,8.4,128.42,128.4,1.2819]
[1725778755841,8.4,128.42,128.38,1.3832]
[1725778756439,11.1256,128.42,128.38,4.1095]
[1725778757449,11.1256,128.42,128.38,2.7263]
[1725778760751,2.7258,128.41,128.37,6.61564802]
[1725778762656,2.7256,128.42,128.38,2.7263]
[1725778762848,2.7256,128.42,128.39,8.4]
[1725778764055,2.7256,128.42,128.38,11.1263]
[1725778767251,11.1256,128.42,128.38,11.1263]
[1725778774567,11.1254,128.43,128.39,2.7261]
[1725778777362,8.4,128.42,128.37,6.61564802]
[1725778777668,8.4,128.41,128.36,8.4]
[1725778778070,8.4,128.41,128.35,6.63815185]
[1725778778260,8.4,128.41,128.35,15.03815185]
[1725778779270,8.4,128.41,128.37,2.7264]
[1725778781574,8.4,128.4,128.36,2.7267]
[1725778781759,8.4,128.38,128.35,1.3837]
[1725778781964,8.4,128.36,128.32,6.58860119]
[1725778782160,8.4,128.36,128.32,2.7275]
[1725778782674,8.4,128.36,128.32,6.58309125]
[1725778784770,8.4,128.36,128.32,2.7275]
[1725778785172,11.1267,128.37,128.33,2.7274]
[1725778801492,2.7267,128.37,128.33,2.7274]
[1725778801785,11.1267,128.37,128.33,2.7274]
[1725778807789,0.1446,128.45,128.34,8.4]
[1725778807992,8.4,128.4,128.34,8.4]
[1725778808688,11.1261,128.4,128.36,2.7268]
[1725778811092,2.7258,128.41,128.37,2.7265]
[1725778811291,1.5481,128.45,128.36,8.4]
[1725778811292,8.4,128.43,128.36,8.4]
[1725778811492,8.4,128.43,128.38,8.4]
[1725778812100,11.1254,128.43,128.38,11.1262]
[1725778814905,11.1254,128.43,128.39,2.7261]
[1725778815495,2.7251,128.44,128.4,2.7259]
[1725778815696,8.4,128.43,128.38,8.4]
[1725778817292,11.1253,128.43,128.39,2.7261]
[1725778822012,1.4035,128.45,128.4,3.94749143]
[1725778822201,0.1445,128.49,128.41,8.4]
[1725778822409,8.4,128.47,128.41,12.26430908]
[1725778822700,11.1246,128.47,128.43,2.7251]
[1725778827118,11.1243,128.48,128.44,2.725]
[1725778827807,11.1243,128.48,128.43,2.7252]
[1725778828004,2.7245,128.47,128.43,2.7252]
[1725778831417,2.7243,128.48,128.44,2.725]
[1725778836423,11.1243,128.48,128.44,2.725]
[1725778839225,2.7243,128.48,128.44,2.725]
[1725778840318,11.1243,128.48,128.44,2.725]
[1725778840924,11.1245,128.47,128.43,2.7252]
[1725778846229,11.1245,128.47,128.43,6.62256836]
[1725778851034,11.1245,128.47,128.43,2.7252]
[1725778851333,11.1245,128.47,128.43,6.56377101]
[1725778860342,6.65470981,128.5,128.44,2.7251]
[1725778860343,2.7243,128.48,128.44,2.7251]
[1725778862944,2.7245,128.47,128.43,6.56387101]
[1725778863247,6.65470981,128.5,128.42,1.3033]
[1725778863248,8.4,128.46,128.42,1.3033]
[1725778864440,8.4,128.46,128.42,4.0288]
[1725778864441,11.1247,128.46,128.42,4.0288]
[1725778866153,2.7247,128.46,128.42,4.0288]
[1725778872357,8.4,128.45,128.38,2.8015]
[1725778872662,8.4,128.45,128.39,3.8981467]
[1725778873458,9.7034,128.45,128.39,3.8981467]
[1725778874346,2.7252,128.44,128.39,6.6241467]
[1725778874751,2.7252,128.44,128.39,15.0241467]
[1725778875358,2.7252,128.44,128.39,16.3252467]
[1725778879859,12.4284,128.45,128.4,2.7259]
[1725778880061,2.725,128.45,128.41,8.4]
[1725778881463,2.725,128.45,128.41,11.1257]
[1725778881758,1.3734,128.48,128.42,8.4]
[1725778881958,1.3746,128.5,128.43,8.4]
[1725778882158,9.7746,128.5,128.45,8.4]
[1725778882460,2.7242,128.49,128.45,8.4]
[1725778883465,2.7242,128.49,128.45,11.1249]
[1725778883672,11.1239,128.5,128.45,11.1249]
[1725778886366,11.1239,128.5,128.46,6.66303216]
[1725778886569,11.1239,128.5,128.46,2.7247]
[1725778887568,2.724,128.49,128.45,2.7248]
[1725778890662,2.7239,128.5,128.45,8.4]
[1725778890862,2.7239,128.5,128.46,3.80439815]
[1725778895758,151.11082127,128.51,128.46,8.4]
[1725778895973,151.11082127,128.51,128.47,5.26107368]
[1725778897265,151.11082127,128.51,128.47,7.98547368]
[1725778897671,2.7235,128.52,128.47,5.26107368]
[1725778897874,11.1235,128.52,128.47,5.26107368]
[1725778898665,4.0966,128.53,128.47,5.26107368]
[1725778898871,8.4,128.52,128.47,5.26107368]
[1725778899164,1.3734,128.53,128.48,8.4]
[1725778899369,147.77689662,128.55,128.49,8.4]
[1725778899571,8.4,128.54,128.48,8.4]
[1725778899870,8.4,128.54,128.47,5.26107368]
[1725778900070,8.4,128.54,128.47,13.66107368]
[1725778900268,3.85294636,128.56,128.47,13.66107368]
[1725778900472,2.7474,128.59,128.48,8.4]
[1725778900670,8.4,128.54,128.48,8.4]
[1725778901371,11.123,128.54,128.49,2.724]
[1725778907480,2.7474,128.59,128.5,11.1236]
[1725778907686,8.4,128.55,128.5,11.1236]
[1725778907875,11.1229,128.55,128.5,11.1236]